bitfinex/quotes_ETHUSD_20240713
["timestamp","ask_amount","ask_price","bid_price","bid_amount"]
[1720874878092,0.09265346,3166.2,3166.0,2.21099]
[1720874878395,2.2105,3166.7,3166.0,2.21099]
[1720874878694,0.09269264,3166.6,3166.0,2.21099]
[1720874879094,2.76043,3166.8,3166.0,2.898331]
[1720874879413,0.09267865,3166.5,3166.0,2.898331]
[1720874879635,2.76043,3166.8,3165.8,4.66242]
[1720874879636,0.09266672,3166.4,3165.8,4.66242]
[1720874879777,2.21066,3166.5,3165.8,4.66242]
[1720874879974,0.55,3166.4,3165.8,4.66242]
[1720874880199,0.0926716,3166.4,3165.8,4.66242]
[1720874880400,0.0926716,3166.4,3165.9,1.3034549]
[1720874880600,2.21064,3166.5,3165.9,1.3034549]
[1720874880801,0.09268161,3166.3,3165.8,2.4513]
[1720874881008,2.21071,3166.4,3165.8,2.4513]
[1720874881196,0.09267419,3166.3,3165.8,2.4513]
[1720874881391,2.21071,3166.4,3165.8,2.4513]
[1720874881797,0.09267419,3166.3,3165.8,2.4513]
[1720874881979,0.09267419,3166.3,3165.8,3.7547579]
[1720874882182,2.21038,3166.9,3165.8,3.7547579]
[1720874882420,2.21054,3166.7,3165.9,2.21105]
[1720874882626,2.21065,3166.5,3165.8,5.9658579]
[1720874882782,0.09267391,3166.4,3165.8,5.9658579]
[1720874882983,0.0895797,3166.3,3165.8,5.9658579]
[1720874883289,2.21065,3166.5,3165.8,5.9658579]
[1720874883504,0.08956934,3166.2,3165.8,5.9658579]
[1720874883681,2.21065,3166.5,3165.9,2.21105]
[1720874883887,0.08943995,3166.1,3166.0,2.21099]
[1720874884086,0.55,3166.8,3166.0,2.21099]
[1720874884309,0.08944327,3166.1,3166.0,2.21099]
[1720874884542,0.55,3166.8,3166.0,2.21099]
[1720874884698,2.20989,3167.6,3166.2,2.4513]
[1720874884890,0.08950149,3166.7,3166.4,2.21064]
[1720874885230,2.21013,3167.3,3166.4,2.21064]
[1720874885525,0.08956877,3167.2,3166.5,2.21061]
[1720874885912,2.21022,3167.1,3166.3,2.21073]
[1720874886087,0.08961556,3167.1,3166.3,2.21073]
[1720874886286,2.21015,3167.2,3166.3,4.42144]
[1720874886526,0.0896,3167.0,3166.4,2.21068]
[1720874886731,2.29988069,3167.1,3166.4,2.21068]
[1720874886946,0.08959756,3166.9,3166.4,2.21068]
[1720874887223,0.08958357,3166.8,3166.3,2.21078]
[1720874887447,2.21031,3167.0,3166.3,2.95884649]
[1720874887600,0.08957321,3166.7,3166.3,2.95884649]
[1720874887999,2.21031,3167.0,3166.4,2.21071]
[1720874888400,0.08959827,3166.9,3166.4,2.21071]
[1720874889022,2.21003,3167.4,3166.6,2.21052]
[1720874889226,0.63967837,3167.3,3166.7,0.221052]
[1720874889588,0.63967837,3167.3,3166.7,2.431542]
[1720874890327,0.08967837,3167.3,3166.8,4.5665]
[1720874890541,5.20967,3167.9,3166.8,4.5665]
[1720874890738,0.08971994,3167.2,3167.0,2.21028]
[1720874890936,2.20985,3167.7,3167.0,2.21028]
[1720874891439,0.08976508,3167.6,3167.0,2.21028]
[1720874891600,2.2096,3168.0,3167.3,2.21008]
[1720874891799,0.08965852,3167.9,3167.1,2.21016]
[1720874892045,2.20982,3167.7,3167.0,2.21028]
[1720874892206,2.20979,3167.8,3166.8,2.6891452]
[1720874892207,2.20988,3167.6,3166.8,2.6891452]
[1720874892419,2.21002,3167.4,3166.8,0.4787552]
[1720874892614,2.21002,3167.4,3166.7,2.21045]
[1720874892935,0.08976906,3167.3,3166.7,2.21045]
[1720874893235,0.63976906,3167.3,3166.7,2.21045]
[1720874893439,0.55,3167.3,3166.7,2.21045]
[1720874895197,0.55,3167.3,3166.5,2.21059]
[1720874895444,0.08976959,3167.2,3166.5,4.00929365]
[1720874895736,0.08976959,3167.2,3166.6,2.21054]
[1720874895910,0.55,3167.1,3166.7,7.41]
[1720874896236,0.63976286,3167.1,3166.7,7.41]
[1720874896997,0.63976286,3167.1,3166.6,2.21054]
[1720874897207,0.55,3167.1,3166.6,3.40712484]
[1720874897407,0.08975613,3167.0,3166.6,3.40712484]
[1720874897705,0.55,3167.3,3166.7,2.21044]
[1720874898032,2.76012,3167.3,3166.6,1.19658484]
[1720874898198,0.08973809,3167.2,3166.5,2.21057]
[1720874898400,0.55,3167.1,3166.5,2.21057]
[1720874898692,0.08972463,3167.0,3166.6,2.21057]
[1720874899340,0.08972463,3167.0,3166.4,21.75068]
[1720874899543,0.08972463,3167.0,3166.4,21.75065]
[1720874900033,2.76027,3167.1,3166.4,21.75065]
[1720874900244,0.08972463,3167.0,3166.4,21.75065]
[1720874900445,2.30001463,3167.0,3166.4,19.54]
[1720874901248,0.55,3166.9,3166.2,2.21079]
[1720874901456,2.43261117,3166.8,3166.1,2.21089]
[1720874901613,2.2105,3166.7,3166.1,2.21089]
[1720874901951,0.63971488,3166.6,3166.1,2.21089]
[1720874902452,0.63971488,3166.6,3166.0,7.41]
[1720874903059,0.63971488,3166.6,3166.0,9.62097]
[1720874904034,2.21076,3166.4,3166.0,7.41]
[1720874904245,0.08968187,3166.3,3166.0,7.41]
[1720874904443,0.55,3166.2,3166.0,7.41]
[1720874904873,2.21076,3166.4,3166.0,7.41]
[1720874904874,0.08955962,3166.1,3166.0,7.41]
[1720874905049,2.21076,3166.4,3165.7,19.54]
[1720874905250,0.08958272,3166.3,3165.7,22.18687067]
[1720874905445,0.08958272,3166.3,3165.7,10.05687067]
[1720874905864,0.08958272,3166.3,3165.8,2.21112]
[1720874908594,0.55,3166.2,3165.7,7.41]
[1720874908802,2.73783727,3166.1,3165.7,7.41]
[1720874909382,2.4528,3166.1,3165.7,7.41]
[1720874909958,2.4528,3166.1,3165.1,3.0]
[1720874909959,2.21106,3165.9,3165.1,9.62161]
[1720874910157,2.21106,3165.9,3165.2,2.21153]
[1720874910480,0.63951447,3165.8,3165.3,2.21147]
[1720874911715,0.63951447,3165.8,3165.4,2.21136]
[1720874911716,0.08951447,3165.8,3165.4,2.21136]
[1720874912006,2.21104,3166.0,3165.2,2.21151]
[1720874912158,0.08937725,3165.7,3165.2,2.21151]
[1720874912357,0.55,3165.9,3165.2,2.21151]
[1720874912598,0.08936977,3165.6,3165.2,2.21151]
[1720874912802,2.76106,3165.9,3165.2,2.21151]
[1720874912972,0.08936303,3165.5,3165.2,2.21151]
[1720874913168,2.76106,3165.9,3165.2,2.21151]
[1720874913419,2.76106,3165.9,3165.1,7.41]
[1720874913420,0.0893563,3165.4,3165.1,7.41]
[1720874913553,2.8071069,3165.8,3165.1,7.41]
[1720874913766,0.08934956,3165.3,3165.1,9.62159]
[1720874913993,2.21115,3165.8,3165.1,9.62159]
[1720874914257,2.8505765,3165.7,3165.1,9.62159]
[1720874914465,0.0893765,3165.7,3165.1,9.62159]
[1720874914693,0.55,3165.9,3165.1,9.62159]
[1720874914694,2.4528,3165.6,3165.1,9.62159]
[1720874914895,2.54216977,3165.6,3165.1,9.62159]
[1720874916621,0.08936977,3165.6,3165.3,2.21146]
[1720874917131,0.0892735,3165.5,3165.3,2.21146]
[1720874917286,0.55,3165.9,3165.3,2.21146]
[1720874917492,0.08926676,3165.4,3165.3,2.21146]
[1720874917711,0.55,3165.9,3165.3,3.0128481]
[1720874917911,0.55,3166.0,3165.4,2.21134]
[1720874918121,2.4528,3166.2,3165.6,2.21125]
[1720874918436,2.4528,3167.2,3165.7,2.21118]
[1720874918806,2.4528,3167.0,3165.7,2.21118]
[1720874918993,0.25422071,3166.9,3165.8,2.21108]
[1720874919195,0.34361435,3166.9,3165.8,2.21108]
[1720874919496,2.4528,3166.7,3165.6,2.21125]
[1720874919699,5.4528,3166.7,3165.6,2.21125]
[1720874920015,0.63937345,3166.6,3165.7,2.21119]
[1720874920192,4.2485908,3166.6,3165.7,2.21119]
[1720874920504,0.63937345,3166.6,3165.7,4.61869]
[1720874920698,0.63937345,3166.6,3165.9,2.21101]
[1720874920888,0.55,3166.6,3165.9,2.21101]
[1720874921095,0.55,3166.6,3165.9,4.422]
[1720874921305,0.08935583,3166.5,3165.9,2.21099]
[1720874921607,0.55,3166.4,3165.9,2.21099]
[1720874922020,0.08934237,3166.3,3165.9,2.21099]
[1720874924046,0.55,3166.4,3165.9,2.21099]
[1720874924265,2.4528,3166.7,3165.9,2.21105]
[1720874924266,0.55,3166.6,3165.9,2.21105]
[1720874924433,0.08932422,3166.3,3165.9,2.21105]
[1720874924602,0.55,3166.6,3165.9,2.21105]
[1720874924801,0.0893429,3166.2,3165.9,2.21105]
[1720874924999,3.502988,3166.6,3165.9,2.21105]
[1720874925240,0.08933617,3166.1,3165.9,2.21105]
[1720874925439,2.21064,3166.5,3165.9,2.21105]
[1720874925622,0.08932943,3166.0,3165.9,2.21105]
[1720874925826,2.76061,3166.6,3165.9,2.21105]
[1720874926135,3.502996,3166.6,3165.9,2.21105]
[1720874926337,0.0893631,3166.5,3165.9,2.21105]
[1720874926528,0.55,3166.4,3165.9,2.21105]
[1720874926834,0.63935636,3166.4,3165.9,2.21105]
[1720874927040,2.3458,3166.3,3165.6,2.21126]
[1720874927241,4.5566,3166.3,3165.6,2.21126]
[1720874927552,4.5566,3166.3,3165.7,2.2112]
[1720874927553,0.63931568,3166.2,3165.7,2.2112]
[1720874928454,0.63931568,3166.2,3165.5,19.54]
[1720874928808,2.21111,3165.9,3165.5,7.41]
[1720874929042,0.55,3165.8,3165.5,7.41]
[1720874929518,0.08937155,3165.7,3165.5,7.41]
[1720874929718,2.21088,3166.2,3165.5,8.151]
[1720874929922,0.08937275,3165.6,3165.5,8.151]
[1720874930155,0.55,3166.1,3165.5,10.36229]
[1720874930308,0.08932923,3165.6,3165.5,9.62129]
[1720874930505,0.55,3166.1,3165.5,9.62129]
[1720874930854,0.08936554,3165.6,3165.5,9.62129]
[1720874931168,0.55,3166.1,3165.5,2.21129]
[1720874931458,0.08936554,3165.6,3165.5,2.21129]
[1720874931619,2.76093,3166.1,3165.3,4.42289]
[1720874931819,3.492691,3166.1,3165.4,2.2114]
[1720874932018,0.08939248,3166.0,3165.4,2.2114]
[1720874932933,0.08939248,3166.0,3165.5,2.21133]
[1720874934550,0.08939248,3166.0,3165.5,4.4226]
[1720874935240,0.08939248,3166.0,3165.6,2.21127]
[1720874939727,0.08939248,3166.0,3165.7,2.21113]
[1720874940288,0.08939248,3166.0,3165.6,2.653487]
[1720874940454,0.08939248,3166.0,3165.6,2.21122]
[1720874940749,0.08939248,3166.0,3165.9,2.21106]
[1720874940923,2.3458,3166.6,3165.9,2.21106]
[1720874941111,0.0894111,3166.0,3165.9,2.21106]
[1720874941418,0.55,3166.5,3165.9,2.21106]
[1720874941617,0.0894111,3166.0,3165.9,2.21106]
[1720874941818,0.55,3166.5,3165.9,4.864285]
[1720874942019,0.55,3166.5,3165.9,4.42206]
[1720874942020,0.08942603,3166.0,3165.9,4.42206]
[1720874942229,0.55,3166.5,3166.0,2.21096]
[1720874942558,2.3458,3166.9,3166.5,2.21062]
[1720874942713,2.3458,3167.3,3166.6,2.21056]
[1720874942920,2.3458,3167.3,3166.8,2.21042]
[1720874945329,2.21029,3167.0,3166.0,2.21093]
[1720874945533,2.8958,3166.9,3166.1,2.2109]
[1720874946975,5.10617,3166.9,3166.1,2.2109]
[1720874947155,5.837816,3166.9,3166.1,2.2109]
[1720874947357,2.21043,3166.8,3165.9,2.21103]
[1720874947553,0.55,3166.7,3165.9,2.21103]
[1720874948350,0.55,3166.7,3166.0,2.21098]
[1720874948973,2.7605,3166.7,3166.0,2.21098]
[1720874949271,3.08499209,3166.7,3166.0,2.21098]
[1720874950346,2.2568,3166.5,3165.8,2.21109]
[1720874950546,0.55,3166.4,3165.8,2.21109]
[1720874951340,0.08973674,3166.3,3165.8,2.21109]
[1720874951752,0.60045941,3166.3,3165.5,9.62131]
[1720874951952,2.76085,3166.2,3165.5,9.62131]
[1720874952582,0.08958657,3166.1,3165.5,9.62131]
[1720874953581,0.08958657,3166.1,3165.5,2.21131]
[1720874953776,2.76085,3166.2,3165.5,2.21131]
[1720874954389,0.08958657,3166.1,3165.5,2.21131]
[1720874955578,0.08958657,3166.1,3165.6,2.21126]
[1720874958645,0.08958657,3166.1,3165.8,2.21107]
[1720874958991,2.2568,3166.5,3165.8,4.42214]
[1720874959194,0.08949235,3166.0,3165.8,2.21107]
[1720874959367,0.55,3166.4,3165.8,2.21107]
[1720874959568,0.08949889,3165.9,3165.8,2.21107]
[1720874959780,0.55,3166.4,3165.8,2.21107]
[1720874959965,0.08949889,3165.9,3165.8,2.21107]
[1720874960153,0.55,3166.4,3165.8,2.21107]
[1720874960804,0.08952582,3166.3,3165.8,2.21107]
[1720874962188,0.08952582,3166.3,3165.6,2.21126]
[1720874962491,2.76072,3166.4,3165.6,4.42247]
[1720874962819,0.08953375,3166.3,3165.6,2.21121]
[1720874963157,0.08953375,3166.3,3165.7,2.21117]
[1720874963505,2.8068,3166.2,3165.5,2.2113]
[1720874963657,2.8068,3166.2,3165.6,2.21123]
[1720874963857,0.08952525,3166.1,3165.6,2.21123]
[1720874965179,0.08952525,3166.1,3165.6,2.653461]
[1720874965388,0.08952525,3166.1,3165.7,2.21117]
[1720874966879,0.08952525,3166.1,3165.6,2.21126]
[1720874968311,0.08952525,3166.1,3165.6,4.42247]
[1720874968699,0.08952525,3166.1,3165.6,2.21121]
[1720874970427,0.08952525,3166.1,3165.4,2.21137]
[1720874970605,2.8736,3166.0,3165.4,2.21137]
[1720874970803,2.96312584,3166.0,3165.4,2.21137]
[1720874972684,5.17415584,3166.0,3165.2,9.62151]
[1720874973906,2.21113,3165.8,3165.2,9.62151]
[1720874974126,4.53481,3165.7,3165.2,7.41]
[1720874974436,4.6242497,3165.7,3165.2,7.41]
[1720874975806,2.3236,3165.2,3164.6,7.41]
[1720874976013,0.55,3165.1,3164.6,7.41]
[1720874976335,0.63937735,3165.1,3164.6,7.41]
[1720874976529,0.63937735,3165.1,3164.3,21.8884]
[1720874976724,0.63937735,3165.1,3164.4,2.18884]
[1720874976915,2.76166,3165.1,3164.4,4.40094]
[1720874978641,4.53498,3165.5,3164.7,2.21184]
[1720874979256,2.3236,3165.0,3164.4,2.2121]
[1720874979418,2.2118,3164.9,3164.3,7.41]
[1720874979618,2.85094981,3164.9,3164.3,7.41]
[1720874980948,4.53545,3164.8,3164.3,7.41]
[1720874981241,4.62454011,3164.8,3164.3,7.41]
[1720874981446,0.55,3164.7,3164.3,7.41]
[1720874981608,0.63908337,3164.7,3164.3,7.41]
[1720874982432,0.63908337,3164.7,3164.1,2.21229]
[1720874982632,0.63908337,3164.7,3164.2,2.433469]
[1720874984355,0.08908337,3164.7,3164.5,2.21203]
[1720874984857,0.08901449,3164.6,3164.5,2.21203]
[1720874985157,0.08901449,3164.6,3164.5,4.42406]
[1720874985377,4.53494,3165.5,3164.7,2.21186]
[1720874985658,0.453494,3165.4,3164.7,2.21186]
[1720874985819,4.53494,3165.5,3164.7,2.21186]
[1720874986758,7.42216,3165.9,3164.9,2.21175]
[1720874986918,5.21106,3165.9,3165.0,2.21168]
[1720874987124,0.753466,3165.8,3165.0,2.21168]
[1720874987354,5.21106,3165.9,3165.0,2.21168]
[1720874987656,2.21114,3165.8,3165.0,2.21168]
[1720874988158,0.55,3165.7,3165.0,2.21168]
[1720874988358,3.55,3165.7,3165.0,2.21168]
[1720874990918,3.55,3165.7,3164.9,2.21175]
[1720874991167,4.126114,3165.7,3164.8,7.41]
[1720874991626,2.3236,3166.0,3164.9,0.06319007]
[1720874991962,2.4431,3165.8,3164.8,7.41]
[1720874992161,2.4431,3166.2,3164.8,7.41]
[1720874992368,2.21148,3165.3,3164.8,7.41]
[1720874992667,0.08920286,3165.2,3164.8,7.41]
[1720874992960,0.55,3165.1,3164.8,7.41]
[1720874993345,0.08919301,3165.0,3164.4,7.41]
[1720874993534,0.08919301,3165.0,3164.4,9.62208]
[1720874996526,0.08919301,3165.0,3164.4,10.80551]
[1720874996861,0.08919301,3165.0,3164.4,9.62208]
[1720874997360,0.08919301,3165.0,3164.4,2.21208]
[1720874998550,2.30094301,3165.0,3164.2,2.21222]
[1720874998876,2.30094301,3165.0,3164.3,2.21217]
[1720874999476,2.4431,3164.8,3164.1,7.41]
[1720874999682,2.4431,3164.8,3164.1,9.62231]
[1720874999883,0.0890961,3164.7,3164.1,9.62231]
[1720875001358,2.3010161,3164.7,3164.1,9.62231]
[1720875003347,2.3010161,3164.7,3164.1,2.21231]
[1720875004692,0.0890961,3164.7,3164.3,2.21212]
[1720875005191,2.21169,3165.0,3164.3,2.21212]
[1720875005710,2.732169,3165.0,3164.3,2.21212]
[1720875006000,0.08899437,3164.9,3164.3,2.21212]
[1720875006555,0.08899437,3164.9,3164.1,2.21231]
[1720875006753,0.55,3164.8,3164.1,2.21231]
[1720875007180,0.08898238,3164.7,3164.1,2.21231]
[1720875007507,2.76187,3164.8,3164.1,2.21231]
[1720875008013,0.08897874,3164.7,3164.1,2.21231]
[1720875009017,2.30087874,3164.7,3164.1,2.21231]
[1720875011815,0.08897874,3164.7,3164.1,2.21231]
[1720875012031,0.55,3164.8,3164.1,2.433541]
[1720875012226,0.08897511,3164.7,3164.1,4.645811]
[1720875012383,2.76176,3164.9,3164.2,2.21223]
[1720875012583,0.08898185,3164.8,3164.2,2.21223]
[1720875013040,0.08898185,3164.8,3164.3,2.21217]
[1720875014318,0.08898185,3164.8,3163.8,10.41]
[1720875014319,2.3286,3164.7,3163.8,12.62246]
[1720875014517,2.21213,3164.4,3163.8,12.62246]
[1720875014720,2.212,3164.6,3163.8,12.62246]
[1720875015044,2.212,3164.6,3164.0,2.21234]
[1720875015228,0.08897823,3164.5,3164.0,2.21234]
[1720875015558,7.30246,3164.7,3164.0,2.21233]
[1720875015737,0.08895655,3164.4,3163.8,11.83498]
[1720875015915,7.30246,3164.7,3163.9,2.21245]
[1720875016115,0.08894981,3164.3,3163.9,2.21245]
[1720875016339,7.30246,3164.7,3163.9,2.21245]
[1720875016653,0.746046,3164.6,3163.9,2.21245]
[1720875016813,0.08892514,3164.5,3163.9,2.21245]
[1720875020215,2.21219,3164.3,3163.8,7.41]
[1720875020530,0.08889994,3164.2,3163.8,7.41]
[1720875021046,0.0888932,3164.1,3163.7,2.21259]
[1720875021242,2.21219,3164.3,3163.7,2.21259]
[1720875021449,0.08889994,3164.2,3163.7,2.21259]
[1720875021816,0.08889994,3164.2,3163.5,2.2127]
[1720875022125,2.3286,3164.1,3163.5,2.2127]
[1720875022435,2.8786,3164.1,3163.5,2.2127]
[1720875024242,2.21246,3163.9,3163.4,7.41]
[1720875024442,0.63886354,3163.8,3163.4,7.41]
[1720875025678,2.3286,3163.6,3163.0,2.21308]
[1720875025841,0.08873179,3163.5,3163.1,2.213]
[1720875026675,2.3286,3163.6,3163.1,2.213]
[1720875026886,0.55,3163.5,3163.2,2.21294]
[1720875027084,0.08870143,3163.4,3163.2,2.21294]
[1720875028379,0.55,3163.5,3163.2,2.21294]
[1720875029084,0.08866823,3163.4,3163.2,2.21294]
[1720875029491,0.08866823,3163.4,3163.1,2.213]
[1720875031202,0.08866823,3163.4,3163.0,2.21308]
[1720875031401,0.55,3163.5,3163.0,2.21308]
[1720875031600,0.55,3163.5,3163.1,2.21301]
[1720875032203,0.12852253,3163.4,3163.1,2.21295]
[1720875032577,0.55,3163.8,3163.2,2.21293]
[1720875032781,0.12851705,3163.3,3163.2,2.21293]
[1720875032973,0.55,3163.8,3163.2,2.21293]
[1720875033295,0.12853898,3163.7,3163.3,2.21285]
[1720875033517,0.55,3163.8,3163.4,2.2128]
[1720875033698,0.1285335,3163.6,3163.4,2.2128]
[1720875033883,0.55,3163.8,3163.3,2.21285]
[1720875034203,0.12853898,3163.7,3163.3,2.21285]
[1720875034499,0.12853898,3163.7,3163.1,4.636]
[1720875034500,0.55,3163.8,3163.2,2.21294]
[1720875034705,0.12852971,3163.7,3163.2,2.21294]
[1720875034996,1.06176,3163.8,3163.2,2.21294]
[1720875035364,0.12853939,3163.7,3163.2,2.21294]
[1720875039688,0.12853939,3163.7,3163.3,2.21285]
[1720875039916,0.55,3163.8,3163.3,2.21285]
[1720875040092,0.12853632,3163.6,3163.3,2.21285]
[1720875040415,0.55,3163.8,3163.3,2.21285]
[1720875040631,0.12852788,3163.5,3163.3,2.21285]
[1720875040797,0.55,3163.8,3163.3,2.21285]
[1720875040996,0.1285224,3163.4,3163.3,2.21285]
[1720875041509,0.55,3163.8,3163.3,2.21285]
[1720875041719,0.12853885,3163.7,3163.3,2.21285]
[1720875042018,0.55,3163.8,3163.3,2.21285]
[1720875042238,0.12854739,3163.6,3163.3,2.21285]
[1720875042380,0.12855287,3163.7,3163.3,2.21285]
[1720875042581,0.12854513,3163.5,3163.3,2.21285]
[1720875042932,0.12853965,3163.4,3163.3,2.21285]
[1720875043428,0.55,3163.8,3163.3,2.21285]
[1720875043628,0.12853965,3163.4,3163.3,2.21285]
[1720875043792,0.55,3163.8,3163.3,2.21285]
[1720875044335,0.12855109,3163.7,3163.3,2.21285]
[1720875044687,0.55,3163.9,3163.3,2.21285]
[1720875044918,0.12855658,3163.8,3163.3,2.21285]
[1720875045721,0.12855658,3163.8,3163.4,2.2128]
[1720875045926,0.12855658,3163.8,3163.7,2.21259]
[1720875046286,2.3552,3164.4,3163.7,2.21259]
[1720875046485,0.12860686,3164.3,3163.7,2.21259]
[1720875046988,0.12860686,3164.3,3164.0,2.21234]
[1720875047199,0.12860686,3164.3,3164.1,2.21231]
[1720875047394,2.4359,3164.7,3164.1,2.21231]
[1720875047622,0.12855869,3164.2,3164.1,2.21231]
[1720875047822,2.4359,3164.7,3164.1,2.21231]
[1720875048032,0.12863212,3164.2,3164.1,4.42462]
[1720875048228,2.4359,3164.7,3164.3,2.21216]
[1720875048733,0.12865404,3164.6,3164.3,2.21216]
[1720875050225,0.40090944,3164.6,3164.3,2.21216]
[1720875050432,0.40090944,3164.6,3163.8,7.41]
[1720875050433,0.40090944,3164.6,3163.9,2.2124]
[1720875051443,0.55,3164.5,3163.9,2.2124]
[1720875051787,0.12866789,3164.4,3163.9,2.2124]
[1720875053832,0.12866789,3164.4,3163.8,7.41]
[1720875054130,2.21218,3164.3,3163.8,7.41]
[1720875054333,0.55,3164.2,3163.8,7.41]
[1720875054533,0.67870813,3164.2,3163.8,7.41]
[1720875056851,0.67870813,3164.2,3163.5,4.42535]
[1720875057003,0.67870813,3164.2,3163.5,2.21267]
[1720875057516,0.67870813,3164.2,3163.6,2.21265]
[1720875057891,0.67870813,3164.2,3163.4,7.41]
[1720875057892,2.21236,3164.1,3163.4,7.41]
[1720875058116,0.67868553,3164.0,3163.4,7.41]
[1720875058316,2.4475,3163.8,3163.4,7.41]
[1720875058483,0.12863756,3163.7,3163.4,7.41]
[1720875058685,2.4475,3163.8,3163.4,7.41]
[1720875058885,0.12863756,3163.7,3163.4,7.41]
[1720875059134,5.402283,3163.8,3163.4,7.41]
[1720875059385,0.12864895,3163.7,3163.4,7.41]
[1720875059828,5.402283,3163.8,3163.4,7.41]
[1720875059995,0.12864346,3163.6,3163.4,7.41]
[1720875060200,5.402283,3163.8,3163.4,7.41]
[1720875060428,0.12863798,3163.5,3163.4,7.41]
[1720875060735,0.12859982,3163.5,3163.4,8.372294]
[1720875060904,2.76239,3164.0,3163.4,8.372294]
[1720875061227,2.34112174,3163.9,3163.4,7.41]
[1720875061530,0.55,3163.8,3163.4,7.41]
[1720875061716,0.12861078,3163.7,3163.4,7.41]
[1720875062029,0.55,3163.8,3163.4,7.41]
[1720875062230,0.1286053,3163.6,3163.4,7.41]
[1720875062396,0.55,3163.8,3163.4,7.41]
[1720875062594,0.12860304,3163.5,3163.4,7.41]
[1720875062806,0.55,3163.8,3163.3,2.21286]
[1720875063015,0.12859982,3163.5,3163.4,2.2128]
[1720875063198,4.65979,3164.2,3163.5,2.21272]
[1720875063427,0.55,3164.1,3163.5,2.21272]
[1720875063612,0.67863271,3164.1,3163.5,2.21272]
[1720875064118,2.89098271,3164.1,3163.5,2.21272]
[1720875064506,3.64605098,3164.1,3163.5,2.21272]
[1720875064707,3.64605098,3164.1,3163.3,2.21286]
[1720875065522,2.21239,3164.0,3163.3,2.21286]
[1720875065732,0.1243341,3163.9,3163.3,2.21286]
[1720875065906,2.4475,3163.8,3163.3,2.21286]
[1720875066106,0.12432314,3163.7,3163.3,2.21286]
[1720875066296,2.4475,3163.8,3163.3,2.21286]
[1720875066499,0.12432314,3163.7,3163.3,2.21286]
[1720875066700,2.4475,3163.8,3163.3,2.21286]
[1720875066897,0.12432314,3163.7,3163.3,2.21286]
[1720875067203,2.4475,3163.8,3163.3,2.21286]
[1720875067399,0.12431765,3163.6,3163.1,2.21296]
[1720875067623,0.12432636,3163.7,3163.1,4.42593]
[1720875067814,2.4475,3163.8,3163.1,4.42593]
[1720875068164,0.1243337,3163.7,3163.2,2.21293]
[1720875068637,2.3369437,3163.7,3163.0,2.21305]
[1720875069145,2.21261,3163.7,3163.0,2.21305]
[1720875069509,2.2128,3163.5,3162.9,3.0]
[1720875069716,0.12429778,3163.4,3162.9,3.0]
[1720875070729,0.12429778,3163.4,3162.9,5.21315]
[1720875071802,2.21265,3163.7,3162.9,5.21315]
[1720875072020,0.55,3163.6,3162.9,5.21315]
[1720875072350,0.12430327,3163.5,3163.0,2.21308]
[1720875078461,4.50831,3163.4,3162.8,7.41]
[1720875078664,5.05831,3163.4,3162.8,7.41]
[1720875078841,2.33705445,3163.3,3162.8,7.41]
[1720875079163,0.55,3163.2,3162.8,7.41]
[1720875079650,0.12415938,3163.1,3162.8,7.41]
[1720875079967,0.12415938,3163.1,3162.8,9.62321]
[1720875080164,0.12415938,3163.1,3162.8,10.806859]
[1720875080465,3.6905413,3164.6,3162.8,10.806859]
[1720875080466,4.50814,3163.7,3162.9,4.68305]
[1720875080675,2.21241,3164.0,3162.9,4.68305]
[1720875080676,0.12415918,3163.0,3162.9,4.68305]
[1720875080961,2.2955,3163.9,3163.3,2.21285]
[1720875081350,0.12402867,3163.8,3163.3,2.21285]
[1720875081727,0.12402867,3163.8,3163.4,2.21279]
[1720875082141,4.50776,3164.2,3163.4,2.21279]
[1720875082342,0.5748294,3164.1,3163.5,4.42539]
[1720875082543,0.1240534,3164.1,3163.5,4.42539]
[1720875083272,2.2125,3163.9,3163.1,7.41]
[1720875083469,2.2125,3163.9,3163.2,2.21293]
[1720875083676,0.12406309,3163.8,3163.2,2.21293]
[1720875083830,2.2955,3163.7,3163.1,7.41]
[1720875084269,0.12407407,3163.6,3163.1,7.41]
[1720875085178,2.33675407,3163.6,3163.1,7.41]
[1720875085336,0.55,3163.5,3163.1,7.41]
[1720875085546,0.12411166,3163.4,3163.1,7.41]
[1720875085882,0.12411166,3163.4,3162.9,2.21314]
[1720875086082,0.55,3163.5,3162.9,2.21314]
[1720875091400,0.55,3163.5,3163.0,2.21308]
[1720875091699,0.55,3163.6,3163.1,0.442622]
[1720875091998,0.1241046,3163.5,3163.0,2.21308]
[1720875092297,0.55,3163.6,3163.0,2.21308]
[1720875093774,0.1241046,3163.5,3163.0,2.21308]
[1720875095116,2.3137,3163.4,3163.0,2.21308]
[1720875095417,0.12409363,3163.3,3163.0,2.21308]
[1720875099892,0.12409363,3163.3,3162.8,2.21317]
[1720875100897,0.12409363,3163.3,3162.9,2.21314]
[1720875102514,2.33703363,3163.3,3162.7,7.41]
[1720875102675,0.55,3163.2,3162.7,7.41]
[1720875102880,0.12407863,3163.1,3162.7,7.41]
[1720875103573,0.12407863,3163.1,3162.7,9.62328]
[1720875106810,0.12407863,3163.1,3162.8,2.21322]
[1720875106976,0.12407863,3163.1,3163.0,2.21308]
[1720875107177,2.3154,3163.7,3163.0,4.42616]
[1720875107416,0.55,3163.6,3163.0,4.42616]
[1720875107621,0.67411196,3163.6,3163.0,4.42616]
[1720875109424,0.67411196,3163.6,3163.1,2.213]
[1720875109673,0.12411196,3163.6,3163.4,2.21274]
[1720875109956,2.3154,3164.1,3163.5,2.21269]
[1720875110126,0.12410672,3164.0,3163.5,2.21269]